fUST/lending_fUST_20250708
["ID","MTS","AMOUNT","RATE_DAILY","PERIOD"]
[370190689,1751911841675,-460.0,0.00019452,2]
[370190691,1751911841683,-460.0,0.00019452,2]
[370190693,1751911841693,-460.0,0.00019452,2]
[370190695,1751911841703,-460.0,0.00019452,2]
[370190697,1751911841715,-942.1,0.00019452,2]
[370190699,1751911841723,-460.0,0.00019452,2]
[370190701,1751911841732,-460.0,0.00019452,2]
[370190703,1751911841741,-460.0,0.00019452,2]
[370190705,1751911841751,-808.84,0.00019452,2]
[370190707,1751911841760,-460.0,0.00019452,2]
[370190709,1751911841769,-460.0,0.00019452,2]
[370190711,1751911841778,-460.0,0.00019452,2]
[370190713,1751911841787,-460.0,0.00019452,2]
[370190715,1751911841796,-460.0,0.00019452,2]
[370190717,1751911841805,-460.0,0.00019452,2]
[370190719,1751911841814,-460.0,0.00019452,2]
[370190721,1751911841823,-460.0,0.00019452,2]
[370190723,1751911841833,-460.0,0.00019452,2]
[370190725,1751911841842,-460.0,0.00019452,2]
[370190727,1751911841851,-460.0,0.00019452,2]
[370190729,1751911841861,-460.0,0.00019452,2]
[370190731,1751911841871,-460.0,0.00019452,2]
[370190733,1751911841881,-968.03,0.00019452,2]
[370190735,1751911841891,-460.0,0.00019452,2]
[370190737,1751911841900,-460.0,0.00019452,2]
[370190739,1751911841909,-460.0,0.00019452,2]
[370190741,1751911841921,-460.0,0.00019452,2]
[370190743,1751911841930,-460.0,0.00019452,2]
[370190745,1751911841940,-460.0,0.00019452,2]
[370190748,1751911841949,-1573.06,0.00019452,2]
[370190750,1751911841958,-460.0,0.00019452,2]
[370190752,1751911841968,-460.0,0.00019452,2]
[370190754,1751911841980,-460.0,0.00019452,2]
[370190755,1751911841992,-460.0,0.00019452,2]
[370190758,1751911842002,-460.0,0.00019452,2]
[370190759,1751911842015,-460.0,0.00019452,2]
[370190762,1751911842024,-4110.19,0.00019452,2]
[370190763,1751911842035,-270.83884719,0.00019452,2]
[370190765,1751911842045,-460.0,0.00019452,2]
[370190768,1751911842055,-460.0,0.00019452,2]
[370190770,1751911842064,-460.0,0.00019452,2]
[370190772,1751911842073,-460.0,0.00019452,2]
[370190774,1751911842084,-460.0,0.00019452,2]
[370190775,1751911842093,-460.0,0.00019452,2]
[370190778,1751911842103,-460.0,0.00019452,2]
[370190780,1751911842112,-460.0,0.00019452,2]
[370190782,1751911842122,-1273.58,0.00019452,2]
[370190784,1751911842131,-470.91,0.00019452,2]
[370190785,1751911842142,-460.0,0.00019452,2]
[370190788,1751911842151,-460.0,0.00019452,2]
[370190790,1751911842161,-460.0,0.00019452,2]
[370190792,1751911842171,-829.97,0.00019452,2]
[370190794,1751911842180,-460.0,0.00019452,2]
[370190796,1751911842190,-460.0,0.00019452,2]
[370190798,1751911842199,-460.0,0.00019452,2]
[370190800,1751911842209,-958.9,0.00019452,2]
[370190802,1751911842218,-983.75,0.00019452,2]
[370190804,1751911842228,-500.0,0.00019473,2]
[370190806,1751911842238,-500.0,0.00019473,2]
[370190808,1751911842248,-500.0,0.00019473,2]
[370190810,1751911842259,-504.48885104,0.00019473,2]
[370190812,1751911842268,-499.77118882,0.00019473,2]
[370190814,1751911842277,-542.05550834,0.00019473,2]
[370190816,1751911842287,-500.0,0.00019473,2]
[370190818,1751911842296,-500.0,0.00019473,2]
[370190820,1751911842305,-500.0,0.00019473,2]
[370190822,1751911842314,-500.0,0.00019473,2]
[370190824,1751911842324,-317.54259868,0.00019473,2]
[370190826,1751911842333,-319.08621603,0.00019473,2]
[370190828,1751911842343,-500.0,0.00019473,2]
[370190831,1751911842353,-500.0,0.00019473,2]
[370190833,1751911842363,-500.0,0.00019473,2]
[370190835,1751911842372,-500.0,0.00019473,2]
[370190837,1751911842382,-206.19814715,0.00019473,2]
[370190839,1751911842391,-500.0,0.00019473,2]
[370190841,1751911842401,-500.0,0.00019473,2]
[370190843,1751911842413,-500.0,0.00019473,2]
[370190845,1751911842423,-256.73739429,0.00019479,2]
[370190847,1751911842432,-500.0,0.00019479,2]
[370190849,1751911842441,-500.0,0.00019506,2]
[370190851,1751911842451,-500.0,0.00019534,2]
[370190853,1751911842461,-500.0,0.00019561,2]
[370190855,1751911842471,-253.12949569,0.00019581,2]
[370190857,1751911842481,-500.0,0.00019589,2]
[370190859,1751911842491,-500.0,0.00019616,2]
[370190861,1751911842500,-1162.87513577,0.00019626,2]
[370190863,1751911842510,-2453.83562429,0.00019626,2]
[370190865,1751911842519,-1324.93768338,0.00019641,2]
[370190867,1751911842529,-500.0,0.00019643,2]
[370190869,1751911842539,-183.0,0.00019671,2]
[370190871,1751911842548,-453.03388965,0.00019721,2]
[370190873,1751911842558,-1000.0,0.00019721,2]
[370190876,1751911842568,-460.0,0.00019726,2]
[370190878,1751911842578,-460.0,0.00019726,2]
[370190880,1751911842587,-460.0,0.00019726,2]
[370190882,1751911842597,-460.0,0.00019726,2]
[370190884,1751911842607,-460.0,0.00019726,2]
[370190886,1751911842618,-460.0,0.00019726,2]
[370190888,1751911842627,-460.0,0.00019726,2]
[370190890,1751911842639,-460.0,0.00019726,2]
[370190892,1751911842649,-460.0,0.00019726,2]
[370190894,1751911842660,-460.0,0.00019726,2]
[370190896,1751911842671,-460.0,0.00019726,2]
[370190898,1751911842680,-460.0,0.00019726,2]
[370190900,1751911842690,-460.0,0.00019726,2]
[370190902,1751911842699,-460.0,0.00019726,2]
[370190905,1751911842709,-460.0,0.00019726,2]
[370190907,1751911842718,-460.0,0.00019726,2]
[370190909,1751911842728,-460.0,0.00019726,2]
[370190911,1751911842737,-460.0,0.00019726,2]
[370190913,1751911842747,-460.0,0.00019726,2]
[370190915,1751911842756,-460.0,0.00019726,2]
[370190917,1751911842766,-460.0,0.00019726,2]
[370190919,1751911842776,-979.24,0.00019726,2]
[370190921,1751911842786,-1937.98,0.00019726,2]
[370190923,1751911842796,-451.29105736,0.00019726,2]
[370190925,1751911842806,-460.0,0.00019726,2]
[370190927,1751911842815,-1279.33,0.00019726,2]
[370190929,1751911842825,-485.3,0.00019726,2]
[370190931,1751911842834,-460.0,0.00019726,2]
[370190933,1751911842843,-201.47067667,0.00019726,2]
[370190935,1751911842853,-738.21,0.00019726,2]
[370190937,1751911842863,-460.0,0.00019726,2]
[370190939,1751911842873,-460.0,0.00019726,2]
[370190941,1751911842884,-3068.15,0.00019726,2]
[370190943,1751911842893,-320.79,0.00019726,2]
[370190945,1751911842903,-460.0,0.00019726,2]
[370190947,1751911842912,-463.59,0.00019726,2]
[370190949,1751911842922,-460.0,0.00019726,2]
[370190951,1751911842932,-460.0,0.00019726,2]
[370190953,1751911842941,-460.0,0.00019726,2]
[370190955,1751911842951,-460.0,0.00019726,2]
[370190957,1751911842960,-460.0,0.00019726,2]
[370190959,1751911842970,-460.0,0.00019726,2]
[370190961,1751911842980,-460.0,0.00019726,2]
[370190963,1751911842990,-787.89,0.00019726,2]
[370190965,1751911842999,-460.0,0.00019726,2]
[370190967,1751911843008,-727.17,0.00019726,2]
[370190969,1751911843018,-460.0,0.00019726,2]
[370190971,1751911843027,-460.0,0.00019726,2]
[370190973,1751911843037,-460.0,0.00019726,2]
[370190975,1751911843046,-460.0,0.00019726,2]
[370190977,1751911843055,-460.0,0.00019726,2]
[370190979,1751911843065,-942.1,0.00019726,2]
[370190981,1751911843075,-460.0,0.00019726,2]
[370190983,1751911843084,-460.0,0.00019726,2]
[370190985,1751911843094,-808.84,0.00019726,2]
[370190988,1751911843104,-460.0,0.00019726,2]
[370190990,1751911843113,-460.0,0.00019726,2]
[370190992,1751911843123,-460.0,0.00019726,2]
[370190994,1751911843134,-356.27553127,0.00019726,2]
[370190996,1751911843144,-460.0,0.00019726,2]
[370190998,1751911843153,-460.0,0.00019726,2]
[370191000,1751911843163,-460.0,0.00019726,2]
[370191002,1751911843172,-460.0,0.00019726,2]
[370191004,1751911843184,-460.0,0.00019726,2]
[370191006,1751911843193,-968.03,0.00019726,2]
[370191008,1751911843202,-460.0,0.00019726,2]
[370191010,1751911843212,-460.0,0.00019726,2]
[370191012,1751911843222,-460.0,0.00019726,2]
[370191014,1751911843231,-460.0,0.00019726,2]
[370191016,1751911843241,-460.0,0.00019726,2]
[370191018,1751911843250,-1573.06,0.00019726,2]
[370191020,1751911843259,-460.0,0.00019726,2]
[370191022,1751911843269,-460.0,0.00019726,2]
[370191023,1751911843279,-460.0,0.00019726,2]
[370191026,1751911843288,-460.0,0.00019726,2]
[370191028,1751911843297,-4110.19,0.00019726,2]
[370191030,1751911843307,-460.0,0.00019726,2]
[370191032,1751911843316,-460.0,0.00019726,2]
[370191034,1751911843325,-460.0,0.00019726,2]
[370191036,1751911843334,-460.0,0.00019726,2]
[370191038,1751911843344,-460.0,0.00019726,2]
[370191040,1751911843353,-460.0,0.00019726,2]
[370191042,1751911843363,-1273.58,0.00019726,2]
[370191044,1751911843371,-460.0,0.00019726,2]
[370191046,1751911843382,-460.0,0.00019726,2]
[370191048,1751911843392,-460.0,0.00019726,2]
[370191050,1751911843401,-829.97,0.00019726,2]
[370191052,1751911843414,-460.0,0.00019726,2]
[370191054,1751911843423,-460.0,0.00019726,2]
[370191055,1751911843433,-460.0,0.00019726,2]
[370191058,1751911843442,-958.9,0.00019726,2]
[370191059,1751911843453,-983.75,0.00019726,2]
[370191061,1751911843462,-500.0,0.0001974,2]
[370191064,1751911843473,-500.0,0.0001974,2]
[370191066,1751911843483,-160.0,0.00019741,2]
[370191068,1751911843493,-160.0,0.00019741,2]
[370191070,1751911843503,-160.0,0.00019741,2]
[370191072,1751911843512,-215.21338352,0.00019741,2]
[370191074,1751911843521,-848.27993403,0.00019741,2]
[370191076,1751911843530,-160.0,0.00019741,2]
[370191078,1751911843540,-214.06929976,0.00019741,2]
[370191080,1751911843549,-12584.46609586,0.00019741,2]
[370191082,1751911843559,-230.48668418,0.00019741,2]
[370191084,1751911843569,-837.79946008,0.00019741,2]
[370191086,1751911843578,-160.0,0.00019741,2]
[370191088,1751911843588,-160.0,0.00019741,2]
[370191090,1751911843597,-160.0,0.00019741,2]
[370191092,1751911843607,-160.0,0.00019741,2]
[370191094,1751911843617,-160.0,0.00019741,2]
[370191096,1751911843627,-160.0,0.00019741,2]
[370191098,1751911843636,-2605.41296869,0.000199,2]
[370191100,1751911843645,-513.34,0.0002,2]
[370191102,1751911843655,-460.0,0.0002,2]
[370191104,1751911843664,-460.0,0.0002,2]
[370191106,1751911843673,-460.0,0.0002,2]
[370191108,1751911843683,-460.0,0.0002,2]
[370191110,1751911843692,-460.0,0.0002,2]
[370191112,1751911843702,-460.0,0.0002,2]
[370191114,1751911843711,-460.0,0.0002,2]
[370191116,1751911843721,-460.0,0.0002,2]
[370191118,1751911843731,-460.0,0.0002,2]
[370191120,1751911843741,-460.0,0.0002,2]
[370191122,1751911843751,-460.0,0.0002,2]
[370191124,1751911843760,-460.0,0.0002,2]
[370191126,1751911843770,-460.0,0.0002,2]
[370191129,1751911843780,-460.0,0.0002,2]
[370191131,1751911843790,-460.0,0.0002,2]
[370191133,1751911843799,-979.24,0.0002,2]
[370191135,1751911843809,-1937.98,0.0002,2]
[370191137,1751911843819,-460.0,0.0002,2]
[370191139,1751911843828,-1279.33,0.0002,2]
[370191141,1751911843838,-485.3,0.0002,2]
[370191143,1751911843847,-460.0,0.0002,2]
[370191145,1751911843856,-738.21,0.0002,2]
[370191147,1751911843865,-460.0,0.0002,2]
[370191149,1751911843875,-3068.15,0.0002,2]
[370191151,1751911843886,-460.0,0.0002,2]
[370191153,1751911843895,-463.59,0.0002,2]
[370191155,1751911843904,-460.0,0.0002,2]
[370191157,1751911843913,-460.0,0.0002,2]
[370191159,1751911843923,-460.0,0.0002,2]
[370191161,1751911843932,-460.0,0.0002,2]
[370191164,1751911843941,-460.0,0.0002,2]
[370191167,1751911843951,-460.0,0.0002,2]
[370191170,1751911843960,-787.89,0.0002,2]
[370191173,1751911843970,-460.0,0.0002,2]
[370191175,1751911843979,-727.17,0.0002,2]
[370191177,1751911843989,-460.0,0.0002,2]
[370191179,1751911843999,-460.0,0.0002,2]
[370191181,1751911844009,-460.0,0.0002,2]
[370191183,1751911844018,-942.1,0.0002,2]
[370191185,1751911844027,-460.0,0.0002,2]
[370191187,1751911844036,-460.0,0.0002,2]
[370191189,1751911844046,-460.0,0.0002,2]
[370191191,1751911844055,-808.84,0.0002,2]
[370191193,1751911844064,-460.0,0.0002,2]
[370191195,1751911844073,-426.0415615,0.0002,2]
[370191197,1751911844083,-460.0,0.0002,2]
[370191199,1751911844092,-460.0,0.0002,2]
[370191201,1751911844101,-460.0,0.0002,2]
[370191216,1751911844230,-460.0,0.0002,2]
[370191219,1751911844242,-460.0,0.0002,2]
[370191221,1751911844252,-968.03,0.0002,2]
[370191223,1751911844263,-495.07,0.0002,2]
[370191225,1751911844273,-460.0,0.0002,2]
[370191227,1751911844282,-460.0,0.0002,2]
[370191229,1751911844291,-1573.06,0.0002,2]
[370191231,1751911844301,-460.0,0.0002,2]
[370191233,1751911844310,-460.0,0.0002,2]
[370191235,1751911844319,-460.0,0.0002,2]
[370191237,1751911844329,-4110.19,0.0002,2]
[370191239,1751911844338,-460.0,0.0002,2]
[370191241,1751911844348,-317.09260757,0.0002,2]
[370191243,1751911844357,-460.0,0.0002,2]
[370191245,1751911844366,-460.0,0.0002,2]
[370191247,1751911844375,-460.0,0.0002,2]
[370191249,1751911844385,-460.0,0.0002,2]
[370191251,1751911844395,-460.0,0.0002,2]
[370191253,1751911844406,-1273.58,0.0002,2]
[370191255,1751911844418,-460.0,0.0002,2]
[370191257,1751911844427,-460.0,0.0002,2]
[370191259,1751911844437,-460.0,0.0002,2]
[370191261,1751911844446,-829.97,0.0002,2]
[370191263,1751911844456,-460.0,0.0002,2]
[370191265,1751911844465,-460.0,0.0002,2]
[370191267,1751911844474,-460.0,0.0002,2]
[370191269,1751911844484,-958.9,0.0002,2]
[370191271,1751911844495,-983.75,0.0002,2]
[370191273,1751911844505,-1000.0,0.00020021,2]
[370191275,1751911844515,-1000.0,0.00020021,2]
[370191277,1751911844525,-1000.0,0.00020021,2]
[370191280,1751911844534,-339.5445092,0.00020021,2]
[370191282,1751911844545,-2605.4129684,0.00020107,2]
[370191284,1751911844555,-460.0,0.00020273,2]
[370191286,1751911844564,-532.8,0.00020273,2]
[370191288,1751911844573,-460.0,0.00020273,2]
[370191290,1751911844583,-460.0,0.00020273,2]
[370191292,1751911844592,-460.0,0.00020273,2]
[370191294,1751911844602,-460.0,0.00020273,2]
[370191296,1751911844611,-460.0,0.00020273,2]
[370191298,1751911844619,-979.24,0.00020273,2]
[370191299,1751911844629,-1937.98,0.00020273,2]
[370191301,1751911844639,-460.0,0.00020273,2]
[370191303,1751911844648,-1279.33,0.00020273,2]
[370191305,1751911844657,-485.3,0.00020273,2]
[370191307,1751911844667,-460.0,0.00020273,2]
[370191309,1751911844677,-738.21,0.00020273,2]
[370191312,1751911844686,-346.65,0.00020273,2]
[370191314,1751911844697,-3068.15,0.00020273,2]
[370191316,1751911844706,-463.59,0.00020273,2]
[370191317,1751911844715,-460.0,0.00020273,2]
[370191319,1751911844725,-460.0,0.00020273,2]
[370191321,1751911844734,-460.0,0.00020273,2]
[370191324,1751911844744,-460.0,0.00020273,2]
[370191326,1751911844754,-787.89,0.00020273,2]
[370191327,1751911844763,-460.0,0.00020273,2]
[370191329,1751911844772,-727.17,0.00020273,2]
[370191331,1751911844782,-467.18209228,0.00020273,2]
[370191333,1751911844792,-460.0,0.00020273,2]
[370191335,1751911844802,-942.1,0.00020273,2]
[370191337,1751911844811,-460.0,0.00020273,2]
[370191339,1751911844820,-460.0,0.00020273,2]
[370191341,1751911844830,-808.84,0.00020273,2]
[370191343,1751911844839,-321.11,0.00020273,2]
[370191345,1751911844848,-460.0,0.00020273,2]
[370191347,1751911844857,-460.0,0.00020273,2]
[370191349,1751911844867,-460.0,0.00020273,2]
[370191351,1751911844877,-460.0,0.00020273,2]
[370191353,1751911844887,-968.03,0.00020273,2]
[370191355,1751911844897,-348.87,0.00020273,2]
[370191357,1751911844906,-460.0,0.00020273,2]
[370191359,1751911844915,-1573.06,0.00020273,2]
[370191361,1751911844925,-460.0,0.00020273,2]
[370191363,1751911844934,-460.0,0.00020273,2]
[370191365,1751911844944,-460.0,0.00020273,2]
[370191367,1751911844953,-4110.19,0.00020273,2]
[370191369,1751911844962,-460.0,0.00020273,2]
[370191370,1751911844972,-460.0,0.00020273,2]
[370191372,1751911844981,-460.0,0.00020273,2]
[370191374,1751911844990,-460.0,0.00020273,2]
[370191376,1751911844999,-460.0,0.00020273,2]
[370191378,1751911845009,-460.0,0.00020273,2]
[370191380,1751911845019,-1273.58,0.00020273,2]
[370191382,1751911845028,-569.66,0.00020273,2]
[370191384,1751911845037,-366.35731842,0.00020273,2]
[370191386,1751911845047,-460.0,0.00020273,2]
[370191388,1751911845056,-829.97,0.00020273,2]
[370191390,1751911845068,-480.86997316,0.00020273,2]
[370191391,1751911845078,-460.0,0.00020273,2]
[370191393,1751911845087,-958.9,0.00020273,2]
[370191395,1751911845096,-983.75,0.00020273,2]
[370191397,1751911845106,-151.0,0.000203,4]
[370191399,1751911845116,-2605.4129684,0.00020314,3]
[370191401,1751911845125,-1162.87513575,0.00020317,2]
[370191403,1751911845134,-428.5386218,0.00020356,2]
[370191405,1751911845145,-428.5386218,0.00020356,2]
[370191407,1751911845154,-428.5386218,0.00020356,2]
[370191409,1751911845163,-428.5386218,0.00020356,2]
[370191411,1751911845173,-237.7,0.000205,4]
[370191413,1751911845182,-2605.4129684,0.00020521,3]
[370191415,1751911845191,-460.0,0.00020547,2]
[370191417,1751911845201,-460.0,0.00020547,2]
[370191419,1751911845210,-460.0,0.00020547,2]
[370191421,1751911845220,-460.0,0.00020547,2]
[370191423,1751911845230,-979.24,0.00020547,2]
[370191425,1751911845239,-1937.98,0.00020547,2]
[370191426,1751911845248,-460.0,0.00020547,2]
[370191428,1751911845258,-1279.33,0.00020547,2]
[370191430,1751911845267,-485.3,0.00020547,2]
[370191432,1751911845276,-460.0,0.00020547,2]
[370191434,1751911845285,-500.0,0.00020547,14]
[370191436,1751911845294,-738.21,0.00020547,2]
[370191438,1751911845304,-3068.15,0.00020547,2]
[370191440,1751911845314,-463.59,0.00020547,2]
[370191442,1751911845324,-460.0,0.00020547,2]
[370191444,1751911845335,-787.89,0.00020547,2]
[370191446,1751911845345,-727.17,0.00020547,2]
[370191448,1751911845355,-942.1,0.00020547,2]
[370191450,1751911845364,-460.0,0.00020547,2]
[370191452,1751911845373,-808.84,0.00020547,2]
[370191454,1751911845383,-460.0,0.00020547,2]
[370191456,1751911845393,-460.0,0.00020547,2]
[370191458,1751911845402,-968.03,0.00020547,2]
[370191460,1751911845414,-588.79,0.00020547,2]
[370191462,1751911845424,-1573.06,0.00020547,2]
[370191464,1751911845433,-460.0,0.00020547,2]
[370191465,1751911845442,-460.0,0.00020547,2]
[370191467,1751911845453,-460.0,0.00020547,2]
[370191469,1751911845462,-4110.19,0.00020547,2]
[370191471,1751911845471,-460.0,0.00020547,2]
[370191473,1751911845481,-460.0,0.00020547,2]
[370191475,1751911845491,-460.0,0.00020547,2]
[370191477,1751911845501,-460.0,0.00020547,2]
[370191479,1751911845511,-1273.58,0.00020547,2]
[370191481,1751911845520,-460.0,0.00020547,2]
[370191483,1751911845529,-829.97,0.00020547,2]
[370191485,1751911845539,-460.0,0.00020547,2]
[370191487,1751911845547,-958.9,0.00020547,2]
[370191488,1751911845558,-983.75,0.00020547,2]
[370191490,1751911845568,-500.0,0.00020568,2]
[370191492,1751911845577,-500.0,0.00020568,2]
[370191494,1751911845586,-151.0,0.000206,3]
[370191496,1751911845595,-25000.0,0.00020607,2]
[370191498,1751911845605,-690.642,0.00020607,2]
[370191500,1751911845615,-5000.0,0.00020607,2]
[370191502,1751911845625,-1500.0,0.00020607,2]
[370191504,1751911845635,-500.0,0.00020607,2]
[370191506,1751911845645,-1296.93837985,0.00020607,2]
[370191508,1751911845655,-500.0,0.00020607,2]
[370191510,1751911845665,-151.0,0.00020607,2]
[370191512,1751911845674,-151.0,0.00020607,2]
[370191514,1751911845684,-151.0,0.00020607,2]
[370191516,1751911845693,-207.4,0.00020607,2]
[370191518,1751911845702,-151.0,0.00020607,2]
[370191520,1751911845712,-151.0,0.00020607,2]
[370191522,1751911845722,-151.0,0.00020607,2]
[370191524,1751911845731,-151.0,0.00020607,2]
[370191526,1751911845741,-151.0,0.00020607,2]
[370191527,1751911845750,-151.0,0.00020607,2]
[370191529,1751911845760,-151.0,0.00020607,2]
[370191531,1751911845769,-151.0,0.00020607,2]
[370191533,1751911845778,-151.0,0.00020607,2]
[370191535,1751911845788,-151.0,0.00020607,2]
[370191537,1751911845797,-151.0,0.00020607,2]
[370191539,1751911845806,-151.0,0.00020607,2]
[370191541,1751911845816,-151.0,0.00020607,2]
[370191543,1751911845826,-151.0,0.00020607,2]
[370191545,1751911845835,-178.056,0.00020644,2]
[370191547,1751911845844,-543.197,0.00020644,2]
[370191549,1751911845853,-716.195754,0.00020662,2]
[370191551,1751911845862,-150.0,0.00020668,30]
[370191553,1751911845872,-742.6949969,0.00020717,2]
[370191555,1751911845881,-12584.46609586,0.00020728,3]
[370191557,1751911845892,-214.06929976,0.00020728,3]
[370191559,1751911845901,-160.0,0.00020728,3]
[370191561,1751911845912,-848.27993403,0.00020728,3]
[370191563,1751911845921,-2605.4129684,0.00020728,3]
[370191565,1751911845931,-155.887469,0.00020728,2]
[370191567,1751911845941,-155.887469,0.00020728,2]
[370191568,1751911845951,-151.0,0.00020728,2]
[370191571,1751911845961,-770.17471178,0.00020772,2]
[370191573,1751911845971,-151.0,0.000208,4]
[370191575,1751911845980,-1626.54,0.00020812,3]
[370191577,1751911845989,-813.28,0.00020812,3]
[370191579,1751911845998,-406.64,0.00020812,3]
[370191581,1751911846008,-151.0,0.00020821,2]
[370191584,1751911846017,-460.0,0.00020821,2]
[370191586,1751911846027,-151.0,0.00020821,2]
[370191588,1751911846036,-210.2174,0.00020821,2]
[370191590,1751911846046,-151.0,0.00020821,2]
[370191592,1751911846055,-151.0,0.00020821,2]
[370191594,1751911846064,-151.0,0.00020821,2]
[370191596,1751911846073,-460.0,0.00020821,2]
[370191598,1751911846082,-151.0,0.00020821,2]
[370191600,1751911846092,-151.0,0.00020821,2]
[370191602,1751911846101,-460.0,0.00020821,2]
[370191604,1751911846111,-460.0,0.00020821,2]
[370191606,1751911846121,-979.24,0.00020821,2]
[370191608,1751911846130,-1937.98,0.00020821,2]
[370191610,1751911846139,-460.0,0.00020821,2]
[370191612,1751911846148,-1279.33,0.00020821,2]
[370191613,1751911846158,-485.3,0.00020821,2]
[370191615,1751911846167,-352.05,0.00020821,2]
[370191617,1751911846178,-738.21,0.00020821,2]
[370191619,1751911846187,-3068.15,0.00020821,2]
[370191621,1751911846196,-201.773008,0.00020821,2]
[370191623,1751911846206,-463.59,0.00020821,2]
[370191625,1751911846215,-201.773008,0.00020821,2]
[370191627,1751911846224,-167.163414,0.00020821,2]
[370191629,1751911846234,-167.163414,0.00020821,2]
[370191631,1751911846242,-460.0,0.00020821,2]
[370191633,1751911846252,-787.89,0.00020821,2]
[370191635,1751911846261,-727.17,0.00020821,2]
[370191637,1751911846270,-942.1,0.00020821,2]
[370191639,1751911846280,-808.84,0.00020821,2]
[370191641,1751911846289,-460.0,0.00020821,2]
[370191643,1751911846299,-460.0,0.00020821,2]
[370191645,1751911846308,-968.03,0.00020821,2]
[370191647,1751911846317,-1573.06,0.00020821,2]
[370191649,1751911846327,-460.0,0.00020821,2]
[370191650,1751911846336,-460.0,0.00020821,2]
[370191652,1751911846346,-4110.19,0.00020821,2]
[370191654,1751911846355,-584.95687514,0.00020821,2]
[370191656,1751911846364,-460.0,0.00020821,2]
[370191658,1751911846373,-460.0,0.00020821,2]
[370191660,1751911846383,-289.704505,0.00020821,2]
[370191662,1751911846393,-1273.58,0.00020821,2]
[370191664,1751911846402,-289.704505,0.00020821,2]
[370191666,1751911846414,-460.0,0.00020821,2]
[370191667,1751911846425,-829.97,0.00020821,2]
[370191669,1751911846435,-265.774624,0.00020821,2]
[370191671,1751911846444,-265.774624,0.00020821,2]
[370191673,1751911846454,-958.9,0.00020821,2]
[370191675,1751911846464,-983.75,0.00020821,2]
[370191677,1751911846473,-798.67117612,0.00020827,2]
[370191679,1751911846483,-403.57,0.00020829,2]
[370191681,1751911846494,-429.128,0.00020829,2]
[370191683,1751911846505,-150.0,0.0002086,2]
[370191685,1751911846515,-828.22200964,0.00020882,2]
[370191687,1751911846524,-151.0,0.00020887,2]
[370191689,1751911846534,-151.0,0.00020887,2]
[370191691,1751911846544,-151.0,0.00020887,2]
[370191693,1751911846555,-270.078039,0.00020887,2]
[370191695,1751911846565,-270.078039,0.00020887,2]
[370191696,1751911846574,-151.0,0.00020887,2]
[370191698,1751911846583,-151.293224,0.00020887,2]
[370191700,1751911846594,-151.0,0.00020912,2]
[370191702,1751911846603,-151.0,0.00020912,2]